bitfinex/quotes_SOLUSD_20250917
["timestamp","ask_amount","ask_price","bid_price","bid_amount"]
[1758142536216,33.47888325,238.01,237.97,12.17897726]
[1758142536415,33.47888325,238.01,237.99,7.9767669]
[1758142536726,0.41888325,238.1,238.01,13.59559401]
[1758142536922,33.06,238.09,238.05,7.9767669]
[1758142537119,0.41888325,238.08,238.04,7.9767669]
[1758142537336,0.41888325,238.08,238.03,13.59559401]
[1758142537521,0.41888325,238.1,238.04,0.71]
[1758142537727,0.72,238.13,238.08,7.9767669]
[1758142537728,33.06,238.09,238.08,7.9767669]
[1758142538147,0.72,238.13,238.08,7.9767669]
[1758142538148,0.41888325,238.13,238.08,7.9767669]
[1758142538355,0.41888325,238.13,238.02,13.59559401]
[1758142538356,33.06,238.13,238.1,7.9767669]
[1758142538559,0.06,238.14,238.12,7.9767669]
[1758142539674,0.06,238.14,238.1,13.59559401]
[1758142539850,0.06,238.14,238.1,0.71]
[1758142540147,0.06,238.14,238.1,7.9767669]
[1758142540357,0.72,238.13,238.06,13.59559401]
[1758142540517,9.11565015,238.13,238.07,21.57236091]
[1758142541251,41.7567669,238.12,238.07,13.59559401]
[1758142541450,41.7567669,238.12,238.04,4.20080165]
[1758142541451,7.9767669,238.1,238.05,13.59559401]
[1758142541655,33.06,238.12,238.03,7.9767669]
[1758142541656,9.11565015,238.09,238.03,7.9767669]
[1758142541819,9.11565015,238.09,238.03,21.57236091]
[1758142542522,1.13888325,238.09,238.04,12.17774152]
[1758142542823,0.41888325,238.09,238.05,7.9767669]
[1758142543025,0.41888325,238.1,238.05,21.57236091]
[1758142543819,33.06,238.11,238.07,7.9767669]
[1758142544028,33.06,238.11,238.06,0.71]
[1758142544236,33.06,238.11,238.08,2.19392552]
[1758142544836,33.78,238.11,238.08,2.19392552]
[1758142545132,1.13888325,238.1,238.08,2.19392552]
[1758142545447,33.47888325,238.11,238.08,2.19392552]
[1758142545642,41.45565015,238.11,238.08,2.19392552]
[1758142545845,0.72,238.1,238.08,2.19392552]
[1758142546153,1.13888325,238.09,238.08,2.19392552]
[1758142546326,6.21421106,238.09,238.08,2.19392552]
[1758142546520,27.13888325,238.09,238.08,2.19392552]
[1758142546734,36.41430346,238.09,238.08,2.19392552]
[1758142547037,26.41888325,238.09,238.08,2.19392552]
[1758142547831,27.13888325,238.09,238.08,2.19392552]
[1758142549342,36.41430346,238.09,238.08,2.19392552]
[1758142549542,31.33897565,238.09,238.08,2.19392552]
[1758142549736,36.41430346,238.09,238.08,2.19392552]
[1758142550826,39.16288439,238.09,238.08,2.19392552]
[1758142551046,49.66311539,238.09,237.98,13.59559401]
[1758142551358,5.07532781,238.03,237.97,13.59559401]
[1758142551527,5.07532781,238.03,237.99,2.1948031]
[1758142551720,5.79532781,238.03,237.99,2.1948031]
[1758142552949,5.07532781,238.0,237.99,2.1948031]
[1758142553143,0.72,238.0,237.99,2.1948031]
[1758142553441,5.79532781,238.0,237.99,2.1948031]
[1758142553624,6.21421106,238.0,237.99,2.1948031]
[1758142554063,1.13888325,238.0,237.99,2.1948031]
[1758142554351,34.15888325,238.0,237.99,2.1948031]
[1758142554522,39.23421106,238.0,237.99,2.1948031]
[1758142556155,33.43888325,238.0,237.99,2.1948031]
[1758142556850,5.07532781,238.04,237.99,2.1948031]
[1758142557177,33.43888325,238.05,238.02,5.07532781]
[1758142557364,33.43888325,238.07,238.03,5.07532781]
[1758142557863,33.43888325,238.07,238.02,13.59559401]
[1758142558035,34.12888325,238.07,238.02,18.67092182]
[1758142558234,0.69,238.06,238.01,5.07532781]
[1758142558484,0.69,238.06,237.99,7.14666032]
[1758142558485,1.10888325,238.05,237.99,6.42666032]
[1758142558660,38.11532781,238.04,237.99,2.2248031]
[1758142558859,1.10888325,238.03,237.99,6.42664898]
[1758142559494,0.41888325,238.03,238.0,0.72]
[1758142559681,33.45888325,238.04,238.0,5.79532781]
[1758142559990,33.45888325,238.04,238.01,5.07532781]
[1758142560281,33.04,238.04,238.01,5.07532781]
[1758142561102,0.41888325,238.06,238.0,13.59559401]
[1758142561383,5.49421106,238.06,238.0,13.59559401]
[1758142561684,0.41888325,238.06,238.0,18.67092182]
[1758142561977,5.49421106,238.06,238.0,18.67092182]
[1758142562882,33.45888325,238.08,238.02,18.67092182]
[1758142563258,33.45888325,238.08,238.03,5.07532781]
[1758142563458,0.06,238.09,238.07,5.07532781]
[1758142563660,0.06,238.09,238.08,18.67092182]
[1758142564081,0.06,238.09,238.08,13.59559401]
[1758142564285,0.06,238.09,238.08,18.67092182]
[1758142564458,0.06,238.09,238.08,5.74532781]
[1758142565088,0.06,238.09,238.08,9.94559662]
[1758142566082,0.06,238.12,238.11,18.67092182]
[1758142566573,0.06,238.14,238.13,5.07532781]
[1758142566897,0.06,238.14,238.13,18.67092182]
[1758142567061,0.06,238.14,238.13,23.5403087]
[1758142568171,1e-08,238.14,238.13,23.5403087]
[1758142568890,1e-08,238.14,238.13,18.46498089]
[1758142569067,1e-08,238.14,238.13,23.5403087]
[1758142574400,1e-08,238.14,238.13,22.8703087]
[1758142574886,0.70000001,238.14,238.1,13.59559401]
[1758142575203,5.77532781,238.13,238.06,9.27588187]
[1758142575411,0.7,238.12,238.07,13.59559401]
[1758142575578,0.7,238.11,238.07,13.59559401]
[1758142575775,0.7,238.1,238.07,13.59559401]
[1758142575994,0.7,238.13,238.09,13.59559401]
[1758142576296,1e-08,238.14,238.09,22.87084154]
[1758142576501,0.7,238.12,238.09,22.87084154]
[1758142576690,0.7,238.12,238.09,17.79551373]
[1758142576876,1e-08,238.14,238.08,5.07532781]
[1758142576877,0.7,238.11,238.08,13.59559401]
[1758142577198,0.7,238.1,238.08,13.59559401]
[1758142577391,1.11888326,238.14,238.08,18.67092182]
[1758142577589,1.11888326,238.14,238.09,5.07532781]
[1758142577796,0.7,238.13,238.08,18.67092182]
[1758142577985,0.7,238.12,238.08,22.87101656]
[1758142578181,0.41888326,238.14,238.08,33.3716886]
[1758142578508,0.70000001,238.14,238.1,5.07532781]
[1758142578802,0.7,238.13,238.08,33.3716886]
[1758142579705,0.7,238.13,238.09,5.07532781]
[1758142579878,0.7,238.13,238.08,33.3716886]
[1758142580073,1e-08,238.14,238.13,13.59559401]
[1758142580377,1e-08,238.14,238.13,18.67092182]
[1758142580577,1e-08,238.14,238.13,19.34092182]
[1758142581293,1e-08,238.14,238.13,18.67092182]
[1758142582201,1e-08,238.14,238.13,22.8703087]
[1758142583897,0.70000001,238.14,238.04,2.86308763]
[1758142584089,0.7,238.13,238.1,13.59559401]
[1758142584291,0.7,238.12,238.1,13.59559401]
[1758142584604,1e-08,238.14,238.04,2.86308763]
[1758142584605,0.7,238.11,238.08,13.59559401]
[1758142585012,1e-08,238.14,238.08,5.07532781]
[1758142585194,0.7,238.11,238.08,5.07532781]
[1758142585509,0.7,238.11,238.07,18.67092182]
[1758142585811,1e-08,238.14,238.1,5.07532781]
[1758142586205,0.70000001,238.14,238.11,4.19973961]
[1758142587191,1e-08,238.14,238.13,18.67092182]
[1758142587814,1e-08,238.14,238.13,13.59559401]
[1758142588003,1e-08,238.14,238.13,18.67092182]
[1758142588309,1e-08,238.14,238.13,22.8703087]
[1758142591721,1e-08,238.14,238.13,23.5403087]
[1758142591899,1e-08,238.14,238.13,56.4603087]
[1758142594396,1e-08,238.14,238.13,55.7903087]
[1758142594915,0.66000001,238.14,238.13,17.79498089]
[1758142595821,0.66000001,238.14,238.13,13.59559401]
[1758142596032,0.66000001,238.14,238.13,17.79498089]
[1758142598328,0.66000001,238.14,238.09,5.07532781]
[1758142598537,5.07532781,238.12,238.09,13.59559401]
[1758142598720,0.66,238.11,238.09,13.59559401]
[1758142598906,0.66,238.1,238.09,13.59559401]
[1758142599243,0.66,238.1,238.07,17.82600835]
[1758142599526,0.66,238.09,238.07,17.82600835]
[1758142599828,0.66,238.08,238.07,13.62559401]
[1758142600013,0.66,238.08,238.07,17.82603925]
[1758142600824,0.66,238.08,238.07,0.03]
[1758142600825,5.73532781,238.08,238.07,0.03]
[1758142601022,0.66,238.11,238.07,5.10532781]
[1758142601324,0.66,238.11,238.08,5.07532781]
[1758142601513,5.49421106,238.13,238.07,4.23043891]
[1758142601711,0.66,238.12,238.07,4.23043891]
[1758142602025,0.66,238.11,238.07,4.23043891]
[1758142602208,0.66,238.11,238.08,13.59559401]
[1758142602600,0.66,238.1,238.08,18.67092182]
[1758142602803,0.66,238.1,238.08,13.59559401]
[1758142603233,0.66,238.09,238.08,13.59559401]
[1758142603417,0.66,238.09,238.07,5.10532781]
[1758142603616,0.66,238.09,238.07,9.30575087]
[1758142603822,0.66,238.08,238.07,4.23042306]
[1758142604018,0.66,238.08,238.07,0.03]
[1758142606612,0.66,238.11,238.07,5.10532781]
[1758142606822,0.66,238.1,238.07,5.10532781]
[1758142607023,0.66,238.1,238.08,5.07532781]
[1758142607335,0.66,238.1,238.08,9.27542751]
[1758142607542,0.41888325,238.13,238.09,5.07532781]
[1758142607836,0.41888325,238.13,238.08,14.70077174]
[1758142607837,0.66000001,238.14,238.12,7.96543284]
[1758142608045,0.66000001,238.14,238.13,7.96543284]
[1758142608216,1e-08,238.14,238.13,7.96543284]
[1758142608418,1e-08,238.14,238.12,7.96543284]
[1758142608616,0.66000001,238.14,238.12,7.96543284]
[1758142609318,0.66000001,238.14,238.12,12.16487717]
[1758142609930,0.66000001,238.14,238.12,7.96543284]
[1758142611216,0.66000001,238.14,238.12,12.16497894]
[1758142611419,0.66,238.13,238.11,7.96543284]
[1758142611623,0.66,238.13,238.1,12.16523172]
[1758142612029,0.66,238.12,238.07,7.99543284]
[1758142612342,0.66,238.11,238.08,21.56102685]
[1758142613227,0.41888326,238.14,238.1,7.96543284]
[1758142613417,0.66000001,238.14,238.1,13.59559401]
[1758142613735,1e-08,238.14,238.1,21.56102685]
[1758142613929,1e-08,238.14,238.09,14.7003234]
[1758142613930,1e-08,238.14,238.12,21.56102685]
[1758142614535,1e-08,238.14,238.12,13.59559401]
[1758142615125,1e-08,238.14,238.13,17.79498089]
[1758142616316,1e-08,238.14,238.13,13.59559401]
[1758142617547,1e-08,238.14,238.13,17.79498089]
[1758142618040,1e-08,238.14,238.13,26.48041373]
[1758142620136,1e-08,238.14,238.13,25.76041373]
[1758142620344,1e-08,238.14,238.13,18.46498089]
[1758142620552,1e-08,238.14,238.13,17.79498089]
[1758142621442,1e-08,238.14,238.1,7.96543284]
[1758142621443,8.61543285,238.14,238.1,13.59559401]
[1758142621644,7.96543284,238.13,238.1,13.59559401]
[1758142621958,7.96543284,238.12,238.08,0.03]
[1758142622291,7.96543285,238.14,238.09,13.59559401]
[1758142622443,8.67543285,238.14,238.09,13.59559401]
[1758142623165,0.71,238.13,238.09,13.59559401]
[1758142623467,0.71,238.13,238.08,14.73088908]
[1758142623468,0.71,238.13,238.11,13.59559401]
[1758142623633,7.96543285,238.14,238.11,13.59559401]
[1758142623970,1e-08,238.14,238.11,13.59559401]
[1758142624262,1e-08,238.14,238.13,21.56102685]
[1758142625363,1e-08,238.14,238.13,26.42041373]
[1758142626791,1e-08,238.14,238.13,17.79498089]
[1758142629772,1e-08,238.14,238.13,26.42041373]
[1758142630868,1e-08,238.14,238.13,17.79498089]
[1758142631284,1e-08,238.14,238.08,0.03]
[1758142631285,8.67543285,238.14,238.08,0.03]
[1758142631570,7.96543284,238.11,238.08,0.03]
[1758142631954,0.71,238.1,238.09,4.19995886]
[1758142632770,0.71,238.1,238.08,0.03]
[1758142632967,8.67543284,238.09,238.08,0.03]
[1758142633448,0.71,238.09,238.08,0.03]
[1758142633654,8.67543284,238.09,238.08,0.03]
[1758142635678,12.87552524,238.09,238.08,0.03]
[1758142635879,15.6294937,238.09,238.08,0.03]
[1758142636374,8.67543284,238.09,238.08,0.03]
[1758142637567,8.38431609,238.1,238.08,0.03]
[1758142637769,0.71000001,238.14,238.1,13.59559401]
[1758142637969,0.71000001,238.14,238.1,21.56102685]
[1758142638174,0.71000001,238.14,238.09,21.56102685]
[1758142638373,0.71,238.13,238.09,21.56102685]
[1758142638583,0.71,238.12,238.08,13.62559401]
[1758142638764,0.71,238.11,238.08,13.62559401]
[1758142639679,0.71,238.11,238.08,17.82571768]
[1758142639988,0.41888325,238.13,238.09,13.59559401]
[1758142640193,0.71,238.13,238.09,13.59559401]
[1758142641393,0.71,238.13,238.1,4.199916]
[1758142641688,7.96543285,238.14,238.11,13.59559401]
[1758142641689,1e-08,238.14,238.11,13.59559401]
[1758142641868,1e-08,238.14,238.12,7.96543284]
[1758142642386,1e-08,238.14,238.11,13.59559401]
[1758142642975,8.67543284,238.13,238.09,13.59559401]
[1758142643176,0.71,238.13,238.09,13.59559401]
[1758142643378,0.71,238.12,238.09,17.79551909]
[1758142643966,0.71,238.11,238.08,0.03]
[1758142644164,7.96543284,238.1,238.08,13.62559401]
[1758142644364,7.96543284,238.1,238.08,0.03]
[1758142644567,0.71,238.11,238.08,0.03]
[1758142644800,8.67543284,238.11,238.08,0.03]
[1758142646067,0.71,238.11,238.08,0.03]
[1758142647301,0.71,238.11,238.08,4.23026881]
[1758142647788,7.96543284,238.09,238.08,0.03]
[1758142648364,8.67543284,238.09,238.08,0.03]
[1758142653873,12.87552524,238.09,238.08,0.03]
[1758142655500,8.67543284,238.09,238.08,0.03]
[1758142655888,12.87552524,238.09,238.08,0.03]
[1758142656393,15.62220496,238.09,238.08,0.03]
[1758142661618,48.58220496,238.09,238.08,0.03]
[1758142662692,48.58220496,238.09,238.06,0.03]
[1758142662693,0.28432314,238.07,238.06,0.03]
[1758142662880,11.41531895,238.07,238.06,0.03]
[1758142663081,12.13531895,238.07,238.05,0.03]
[1758142663288,41.20975598,238.06,238.05,0.03]
[1758142663615,43.9564357,238.06,238.05,0.03]
[1758142663814,44.6764357,238.06,238.05,0.03]
[1758142664313,48.87705739,238.06,238.05,0.03]
[1758142664813,2.74667972,238.06,238.05,0.03]
[1758142664974,32.94,238.06,238.05,0.03]
[1758142665179,40.90543284,238.06,238.05,0.03]
[1758142665378,0.41888325,238.07,238.05,0.73]
[1758142665599,32.96,238.07,238.06,0.7]
[1758142665981,32.96,238.07,238.05,0.03]
[1758142666180,9.10431609,238.06,238.05,0.03]
[1758142666404,8.38431609,238.06,238.05,0.03]
[1758142667888,10.41759542,238.06,238.05,0.03]
[1758142668100,13.15624404,238.06,238.05,0.03]
[1758142670192,26.0,238.05,238.04,0.03]
[1758142670396,71.26186039,238.05,238.04,0.03]
[1758142670605,71.98186039,238.05,238.04,0.03]
[1758142671123,71.69753725,238.05,238.04,0.03]
[1758142672028,71.98186039,238.05,238.04,0.03]
[1758142673894,68.99429659,238.05,238.04,0.03]
[1758142674528,67.98997345,238.05,238.04,0.03]
[1758142674832,68.00997345,238.05,238.04,0.03]
[1758142675024,68.72997345,238.05,238.04,0.03]
[1758142678224,67.96997345,238.05,238.04,0.03]
[1758142678614,35.05052668,238.05,238.04,0.72]
[1758142679329,35.46940993,238.05,238.04,0.72]
[1758142679827,35.46940993,238.05,238.04,0.03]
[1758142680213,35.46940993,238.05,238.04,0.72]
[1758142680417,32.96,238.05,238.04,0.72]
[1758142680619,2.09052668,238.07,238.04,4.92097462]
[1758142680825,35.03052668,238.07,238.05,0.69]
[1758142681036,32.94,238.07,238.06,0.69]
[1758142681914,0.41888325,238.12,238.06,4.89062169]
[1758142682122,35.03052668,238.11,238.07,0.69]
[1758142683526,2.09052668,238.11,238.08,0.71]
[1758142683706,2.09052668,238.11,238.09,4.91002593]
[1758142684108,32.94,238.12,238.1,0.71]
[1758142684328,1e-08,238.14,238.1,0.71]
[1758142684507,2.09052668,238.11,238.1,0.71]
[1758142685134,32.94,238.12,238.1,0.71]
[1758142685437,35.03052668,238.12,238.1,0.71]
[1758142685613,32.94,238.12,238.06,14.7021751]
[1758142685928,32.94000001,238.14,238.11,4.90973961]
[1758142686118,32.94000001,238.14,238.12,0.71]
[1758142686437,1e-08,238.14,238.13,0.71]
[1758142687221,2.09052669,238.14,238.09,14.30559401]
[1758142687427,2.09052668,238.12,238.09,14.30559401]
[1758142687737,2.09052668,238.1,238.05,0.03]
[1758142687928,0.67,238.11,238.05,17.82638616]
[1758142687929,2.09052668,238.06,238.05,17.82638616]
[1758142688123,2.09052668,238.06,238.05,0.74]
[1758142688317,2.09052668,238.08,238.06,13.59559401]
[1758142688517,2.09052668,238.09,238.07,0.71]
[1758142688711,2.09052668,238.09,238.08,0.71]
[1758142689116,2.09052668,238.09,238.06,0.71]
[1758142689333,32.94,238.1,238.06,0.71]
[1758142689334,2.09052668,238.07,238.06,0.71]
[1758142689537,2.09052668,238.07,238.05,0.03]
[1758142691423,39.9210635,238.07,238.05,0.03]
[1758142691828,40.33994675,238.07,238.05,0.03]
[1758142692024,0.67,238.06,238.05,0.03]
[1758142693257,3.41179383,238.06,238.05,0.03]
[1758142693547,26.0,238.04,238.03,0.03]
[1758142693719,64.21120376,238.04,238.03,0.03]
[1758142693920,64.88120376,238.04,238.03,0.03]
[1758142694226,69.08217838,238.04,238.03,0.03]
[1758142697031,69.08217838,238.04,238.02,0.03]
[1758142697225,4.83232051,238.03,238.02,0.03]
[1758142697432,4.83232051,238.03,237.91,13.59559401]
[1758142697645,4.83232051,238.03,237.9,2.19538192]
[1758142697646,28.09052668,238.01,237.9,2.19538192]
[1758142697941,28.74179383,238.01,237.95,0.71]
[1758142698131,61.05052668,238.01,237.95,0.71]
[1758142698520,61.05052668,238.01,237.95,4.91254231]
[1758142699037,61.05052668,238.01,237.96,0.71]
[1758142699746,61.05052668,238.01,237.96,4.91234664]
[1758142699959,61.46940993,238.01,237.96,4.91234664]
[1758142700415,59.37888325,238.01,237.96,4.91234664]
[1758142700829,61.05052668,238.01,237.96,4.91234664]
[1758142701148,61.46940993,238.01,237.96,4.91234664]
[1758142701527,62.5207809,238.01,237.96,0.71]
[1758142701732,67.39228503,238.01,237.92,4.91308888]
[1758142702038,67.39228503,238.01,237.94,0.71]
[1758142702840,66.72228503,238.01,237.94,0.71]
[1758142703044,66.72228503,238.01,237.92,4.20308888]
[1758142703349,66.72228503,238.01,237.97,0.03]
[1758142703350,67.39228503,238.01,237.97,0.03]
[1758142704224,66.72228503,238.01,237.97,0.03]
[1758142704548,62.5207809,238.01,237.97,0.03]
[1758142704744,62.10189765,238.01,237.97,0.03]
[1758142704958,62.5207809,238.01,237.97,0.03]
[1758142705549,66.72228503,238.01,237.97,0.03]
[1758142705736,67.39228503,238.01,237.97,0.03]
[1758142705927,67.39224829,238.01,237.97,0.03]
[1758142706454,67.37224829,238.01,237.97,0.03]
[1758142706630,62.50074416,238.01,237.97,0.03]
[1758142706821,62.08186091,238.01,237.97,0.03]
[1758142707246,66.95336504,238.01,237.97,0.03]
[1758142708427,34.01336504,238.01,237.97,0.03]
[1758142708628,66.93336504,238.01,237.97,0.03]
[1758142709168,66.93336504,238.01,238.0,0.74]
[1758142709169,1.05133423,238.01,238.0,0.74]
[1758142709331,0.06,238.03,238.01,13.59559401]
[1758142709526,0.06,238.03,238.02,0.71]
[1758142709745,0.06,238.03,238.02,4.91132761]
[1758142710636,0.06,238.03,238.02,18.50692162]
[1758142710950,0.06,238.03,238.02,20.5974483]
[1758142712656,0.06,238.03,238.02,18.50692162]
[1758142715357,0.06,238.03,238.02,20.5974483]
[1758142715933,0.06,238.06,238.02,20.5974483]
[1758142715934,0.06,238.06,238.03,13.59559401]
[1758142716234,0.06,238.06,238.05,2.09052668]
[1758142716442,0.06,238.06,238.05,15.68612069]
[1758142716637,0.06,238.06,238.05,16.39612069]
[1758142717036,0.06,238.08,238.07,17.79603925]
[1758142717233,1e-08,238.14,238.08,13.59559401]
[1758142717431,1e-08,238.14,238.12,13.59559401]
[1758142717863,1e-08,238.14,238.12,0.71]
[1758142718760,1e-08,238.14,238.13,17.79498089]
[1758142719355,1e-08,238.14,238.13,13.59559401]
[1758142719544,1e-08,238.14,238.13,14.30559401]
[1758142719740,1e-08,238.14,238.13,13.59559401]
[1758142720265,1e-08,238.14,238.13,14.30559401]
[1758142720758,1e-08,238.14,238.13,18.50498089]
[1758142722742,1e-08,238.14,238.13,20.59550757]
[1758142723148,1e-08,238.14,238.13,18.50498089]
[1758142723341,1e-08,238.14,238.13,20.87983071]
[1758142723556,1e-08,238.14,238.13,18.78930403]
[1758142723765,1e-08,238.14,238.13,17.79498089]
[1758142724580,1e-08,238.14,238.13,18.50498089]
[1758142725768,1e-08,238.14,238.13,20.59550757]
[1758142726987,1e-08,238.14,238.13,13.59559401]
[1758142727358,1e-08,238.14,238.13,17.79498089]
[1758142727764,0.72000001,238.14,238.13,17.79498089]
[1758142728166,1e-08,238.14,238.13,17.79498089]
[1758142729890,3.26119219,238.14,238.13,17.79498089]
[1758142730792,3.98119219,238.14,238.03,0.71]
[1758142730999,26.41888325,238.13,238.03,4.91113134]
[1758142731169,1e-08,238.14,238.08,3.26119218]
[1758142731365,1e-08,238.14,238.09,0.71]
[1758142731865,3.26119219,238.14,238.1,0.71]
[1758142732784,3.26119219,238.14,238.09,13.59559401]
[1758142732982,3.26119218,238.12,238.09,13.59559401]
[1758142733184,3.26119218,238.13,238.09,14.30559401]
[1758142733885,3.26119218,238.12,238.07,13.59559401]
[1758142734088,3.26119218,238.11,238.07,13.59559401]
[1758142734471,3.26119218,238.11,238.08,13.59559401]
[1758142734986,3.26119218,238.12,238.09,0.71]
[1758142735166,3.26119218,238.13,238.09,0.71]
[1758142735366,3.26119218,238.13,238.11,13.59559401]
[1758142735695,3.26119219,238.14,238.11,13.59559401]
[1758142735864,3.26119219,238.14,238.11,0.71]
[1758142736191,3.26119219,238.14,238.13,13.59559401]
[1758142737986,3.26119219,238.14,238.13,4.19938688]
[1758142739077,3.26119219,238.14,238.13,13.59559401]
[1758142739282,3.95119219,238.14,238.08,17.82585661]
[1758142739585,3.26119218,238.11,238.08,17.82585661]
[1758142739758,3.26119218,238.12,238.08,17.82585661]
[1758142739962,3.26119218,238.12,238.1,13.59559401]
[1758142740193,3.26119218,238.11,238.08,18.48585661]
[1758142740498,3.26119218,238.11,238.1,17.79551001]
[1758142742007,3.26119219,238.14,238.1,18.45551001]
[1758142742299,1e-08,238.14,238.11,0.66]
[1758142742505,1e-08,238.14,238.13,13.59559401]
[1758142742705,1e-08,238.14,238.13,50.42104801]
[1758142743011,0.06,238.16,238.14,0.28432314]
[1758142743177,0.06,238.16,238.15,17.86110933]
[1758142743585,1e-08,238.16,238.15,17.86110933]
[1758142743792,1e-08,238.16,238.15,18.28101275]
[1758142743996,1e-08,238.16,238.15,22.48004697]
[1758142745274,0.06,238.19,238.17,0.28432314]
[1758142745475,0.06,238.19,238.18,50.72110933]
[1758142746100,0.06,238.19,238.18,54.91961466]
[1758142748089,0.06,238.19,238.18,50.65409934]
[1758142748494,0.06,238.19,238.18,51.37409934]
[1758142750000,0.06,238.19,238.18,54.63529152]
[1758142750196,0.06,238.19,238.18,54.91961466]
[1758142750908,1e-08,238.19,238.18,54.91961466]
[1758142751506,1e-08,238.19,238.18,55.33946519]
[1758142752506,1e-08,238.19,238.18,50.93842248]
[1758142752912,1e-08,238.19,238.18,46.45559401]
[1758142754006,1e-08,238.19,238.18,50.65409934]
[1758142756926,1e-08,238.19,238.18,54.63529152]
[1758142757416,1e-08,238.19,238.18,54.91961466]
[1758142757593,1e-08,238.19,238.18,55.33946519]
[1758142758006,1e-08,238.19,238.18,52.07827301]
[1758142758200,1e-08,238.19,238.18,55.33946519]
[1758142758398,1e-08,238.19,238.18,50.91842248]
[1758142759704,1e-08,238.19,238.18,54.89961466]
[1758142761010,1e-08,238.19,238.18,54.17961466]
[1758142761815,1e-08,238.19,238.18,50.91842248]
[1758142762413,1e-08,238.19,238.18,54.17961466]
[1758142762815,1e-08,238.19,238.18,54.89961466]
[1758142763600,1e-08,238.19,238.18,51.63842248]
[1758142763899,1e-08,238.19,238.18,54.89961466]
[1758142764315,1e-08,238.19,238.18,55.31946519]
[1758142764494,1e-08,238.22,238.21,39.59559401]
[1758142764704,1e-08,238.22,238.21,80.59888355]
[1758142765005,1e-08,238.22,238.21,81.31888355]
[1758142765522,1e-08,238.22,238.21,18.07789372]
[1758142765697,1e-08,238.22,238.21,50.91789372]
[1758142766124,1e-08,238.22,238.21,54.1790859]
[1758142766530,1e-08,238.22,238.21,54.8990859]
[1758142766699,1e-08,238.22,238.21,55.31888355]
[1758142767191,1e-08,238.22,238.21,54.8990859]
[1758142767790,1e-08,238.22,238.21,51.63789372]
[1758142768016,1e-08,238.22,238.21,54.8990859]
[1758142768607,1e-08,238.22,238.21,51.63789372]
[1758142768812,1e-08,238.22,238.21,54.8990859]
[1758142769018,1e-08,238.22,238.21,18.07789372]
[1758142769201,1e-08,238.22,238.21,80.1790859]
[1758142770200,2.416957,238.26,238.21,80.1790859]
[1758142770201,1e-08,238.26,238.25,26.0]
[1758142770399,0.2,238.27,238.26,13.87991715]
[1758142770400,1e-08,238.27,238.26,13.87991715]
[1758142770609,1e-08,238.27,238.26,50.86110933]
[1758142770905,1e-08,238.27,238.26,55.05820493]
[1758142771594,1e-08,238.27,238.26,67.90020417]
[1758142772012,1e-08,238.27,238.26,68.31991373]
[1758142773442,0.2,238.36,238.35,16.85678619]
[1758142773746,0.2,238.36,238.35,49.85678619]
[1758142774042,0.2,238.36,238.35,54.05229699]
[1758142774218,0.2,238.36,238.35,54.33662013]
[1758142775143,0.88,238.36,238.35,50.79110481]
[1758142776335,0.2,238.36,238.35,50.79110481]
[1758142777939,0.88,238.36,238.35,50.79110481]
[1758142778099,0.2,238.36,238.35,50.79110481]
[1758142778810,0.88,238.36,238.35,50.79110481]
[1758142779957,0.2,238.36,238.35,50.79110481]
[1758142780306,0.88,238.36,238.35,17.79110481]
[1758142780526,0.88,238.36,238.35,50.73110481]
[1758142780706,0.88,238.36,238.35,13.59559401]
[1758142781229,4.14119218,238.36,238.34,13.59559401]
[1758142781432,3.46119218,238.36,238.34,13.59559401]
[1758142781727,3.94119218,238.35,238.34,13.59559401]
[1758142782027,3.94119218,238.35,238.31,13.59559401]
[1758142782224,3.26119218,238.33,238.31,13.59559401]
[1758142782416,0.68,238.32,238.31,17.79164913]
[1758142783129,0.68,238.32,238.31,13.59559401]
[1758142784353,0.68,238.32,238.28,13.59559401]
[1758142784354,3.94119218,238.32,238.28,13.59559401]
[1758142784641,3.26119218,238.3,238.28,13.59559401]
[1758142785020,0.68,238.29,238.28,13.59559401]
[1758142786243,0.68,238.29,238.28,17.79233733]
[1758142786428,3.26119218,238.31,238.28,13.59559401]